[Event "Titled Tuesday Blitz December 13 Late 2022"]
[White "Annaberdiyev, Babageldi"]
[Black "Yoo, Christopher Woojin"]
[WhiteFideId "14000385"]
[BlackFideId "30909694"]
[WhiteElo "2332"]
[BlackElo "2463"]
[Result "1-0"]
[Round "07"]
[TimeControl "180+1"]
[Date "2022.12.13"]
[WhiteClock "0:00:56"]
[BlackClock "0:00:03"]

1. e4 {[%clk 0:03:00]}  c5 {[%clk 0:02:59]} 2. Nf3 {[%clk 0:02:59]}  e6 {[%clk 0:02:59]} 3. d3 {[%clk 0:02:59]}  Nc6 {[%clk 0:02:57]} 4. Nbd2 {[%clk 0:03:00]}  d5 {[%clk 0:02:51]} 5. g3 {[%clk 0:03:01]}  Bd6 {[%clk 0:02:50]} 6. Bg2 {[%clk 0:03:00]}  Nge7 {[%clk 0:02:51]} 7. O-O {[%clk 0:02:59]}  O-O {[%clk 0:02:52]} 8. Re1 {[%clk 0:02:57]}  Qc7 {[%clk 0:02:52]} 9. exd5 {[%clk 0:02:55]}  exd5 {[%clk 0:02:51]} 10. c4 {[%clk 0:02:56]}  Nb4 {[%clk 0:02:45]} 11. Nf1 {[%clk 0:02:53]}  dxc4 {[%clk 0:02:36]} 12. dxc4 {[%clk 0:02:54]}  Rd8 {[%clk 0:02:36]} 13. Qb3 {[%clk 0:02:51]}  Bf5 {[%clk 0:02:03]} 14. Ne3 {[%clk 0:02:48]}  Nd3 {[%clk 0:02:02]} 15. Rd1 {[%clk 0:02:46]}  Nxc1 {[%clk 0:02:02]} 16. Raxc1 {[%clk 0:02:45]}  Be4 {[%clk 0:02:02]} 17. Ng5 {[%clk 0:02:39]}  Bxg2 {[%clk 0:02:01]} 18. Kxg2 {[%clk 0:02:40]}  Be5 {[%clk 0:01:54]} 19. Nd5 {[%clk 0:02:36]}  Nxd5 {[%clk 0:01:52]} 20. cxd5 {[%clk 0:02:36]}  b6 {[%clk 0:01:49]} 21. f4 {[%clk 0:02:34]}  Bd6 {[%clk 0:01:43]} 22. Qd3 {[%clk 0:02:32]}  g6 {[%clk 0:01:42]} 23. Ne4 {[%clk 0:02:31]}  f5 {[%clk 0:01:39]} 24. Ng5 {[%clk 0:02:29]}  Re8 {[%clk 0:01:35]} 25. Ne6 {[%clk 0:02:29]}  Qf7 {[%clk 0:01:34]} 26. h4 {[%clk 0:02:27]}  h5 {[%clk 0:01:33]} 27. Re1 {[%clk 0:02:26]}  Qf6 {[%clk 0:01:32]} 28. Re2 {[%clk 0:02:24]}  Re7 {[%clk 0:01:32]} 29. Rce1 {[%clk 0:02:21]}  a6 {[%clk 0:01:28]} 30. a4 {[%clk 0:02:20]}  Raa7 {[%clk 0:01:12]} 31. b3 {[%clk 0:02:20]}  Kh8 {[%clk 0:00:52]} 32. Kh3 {[%clk 0:02:20]}  Kg8 {[%clk 0:00:52]} 33. Ng5 {[%clk 0:02:12]}  Qd4 {[%clk 0:00:50]} 34. Qxd4 {[%clk 0:01:59]}  cxd4 {[%clk 0:00:50]} 35. Re6 {[%clk 0:02:00]}  Kg7 {[%clk 0:00:31]} 36. Rd1 {[%clk 0:01:56]}  Bc5 {[%clk 0:00:28]} 37. b4 {[%clk 0:01:49]}  Bxb4 {[%clk 0:00:27]} 38. Rxb6 {[%clk 0:01:49]}  Bc3 {[%clk 0:00:20]} 39. Ne6+ {[%clk 0:01:48]}  Kf7 {[%clk 0:00:20]} 40. Nxd4 {[%clk 0:01:44]}  Rad7 {[%clk 0:00:16]} 41. Ne6 {[%clk 0:01:41]}  a5 {[%clk 0:00:12]} 42. Ng5+ {[%clk 0:01:29]}  Kg7 {[%clk 0:00:12]} 43. Re6 {[%clk 0:01:29]}  Rxe6 {[%clk 0:00:11]} 44. Nxe6+ {[%clk 0:01:30]}  Kf6 {[%clk 0:00:11]} 45. Nc5 {[%clk 0:01:28]}  Rd6 {[%clk 0:00:11]} 46. Kg2 {[%clk 0:01:22]}  Bb4 {[%clk 0:00:10]} 47. Ne6 {[%clk 0:01:20]}  Rd7 {[%clk 0:00:10]} 48. Kf3 {[%clk 0:01:19]}  Rb7 {[%clk 0:00:07]} 49. Rc1 {[%clk 0:01:13]}  Bd6 {[%clk 0:00:07]} 50. Rc6 {[%clk 0:01:14]}  Rb3+ {[%clk 0:00:07]} 51. Kg2 {[%clk 0:01:14]}  Rb2+ {[%clk 0:00:07]} 52. Kh3 {[%clk 0:01:15]}  Ke7 {[%clk 0:00:07]} 53. Nf8 {[%clk 0:00:54]}  Kxf8 {[%clk 0:00:02]} 54. Rxd6 {[%clk 0:00:55]}  Rb4 {[%clk 0:00:02]} 55. Rxg6 {[%clk 0:00:54]}  Kf7 {[%clk 0:00:01]} 56. Rg5 {[%clk 0:00:55]}  Kf6 {[%clk 0:00:01]} 57. Rxh5 {[%clk 0:00:55]}  Rxa4 {[%clk 0:00:02]} 58. Rh6+ {[%clk 0:00:55]}  Kf7 {[%clk 0:00:03]} 59. Ra6 {[%clk 0:00:56]}  Ra2 {[%clk 0:00:02]} 60. h5 {[%clk 0:00:55]}  a4 {[%clk 0:00:03]} 61. Kh4 {[%clk 0:00:56]}  a3 {[%clk 0:00:03]} 62. Kg5 {[%clk 0:00:56]} 1-0


[Site "https://www.chess.com"]

[Event "Titled Tuesday Blitz December 13 Late 2022"]
[White "Ansh M Shah"]
[Black "Averjanov, Alexey"]
[WhiteFideId "25033379"]
[BlackFideId "14109867"]
[WhiteElo "2084"]
[BlackElo "2622"]
[Result "0-1"]
[Round "07"]
[TimeControl "180+1"]
[Date "2022.12.14"]
[WhiteClock "0:01:40"]
[BlackClock "0:01:46"]

1. d4 {[%clk 0:03:00]}  d5 {[%clk 0:02:56]} 2. c4 {[%clk 0:03:01]}  dxc4 {[%clk 0:02:55]} 3. e3 {[%clk 0:03:00]}  Nf6 {[%clk 0:02:55]} 4. Bxc4 {[%clk 0:03:01]}  e6 {[%clk 0:02:55]} 5. Nf3 {[%clk 0:03:01]}  a6 {[%clk 0:02:55]} 6. a4 {[%clk 0:03:01]}  c5 {[%clk 0:02:55]} 7. O-O {[%clk 0:03:01]}  Nc6 {[%clk 0:02:55]} 8. dxc5 {[%clk 0:03:01]}  Bxc5 {[%clk 0:02:55]} 9. b3 {[%clk 0:03:01]}  O-O {[%clk 0:02:54]} 10. Bb2 {[%clk 0:03:00]}  b6 {[%clk 0:02:52]} 11. Qe2 {[%clk 0:02:56]}  Bb7 {[%clk 0:02:47]} 12. Rd1 {[%clk 0:02:56]}  Qe7 {[%clk 0:02:46]} 13. Nbd2 {[%clk 0:02:55]}  Rfd8 {[%clk 0:02:45]} 14. Rac1 {[%clk 0:02:55]}  h6 {[%clk 0:02:40]} 15. h3 {[%clk 0:02:53]}  Rd7 {[%clk 0:02:32]} 16. Nb1 {[%clk 0:02:50]}  Rxd1+ {[%clk 0:02:31]} 17. Rxd1 {[%clk 0:02:49]}  Na5 {[%clk 0:02:28]} 18. Bd4 {[%clk 0:02:44]}  Nxc4 {[%clk 0:02:26]} 19. Qxc4 {[%clk 0:02:42]}  Rc8 {[%clk 0:02:16]} 20. Bxc5 {[%clk 0:02:39]}  Rxc5 {[%clk 0:02:17]} 21. Qb4 {[%clk 0:02:39]}  Bxf3 {[%clk 0:02:14]} 22. gxf3 {[%clk 0:02:39]}  Rg5+ {[%clk 0:02:14]} 23. Qg4 {[%clk 0:02:35]}  e5 {[%clk 0:02:14]} 24. Nc3 {[%clk 0:02:20]}  Nxg4 {[%clk 0:02:11]} 25. fxg4 {[%clk 0:02:20]}  Qb4 {[%clk 0:02:08]} 26. Rd8+ {[%clk 0:02:17]}  Kh7 {[%clk 0:02:07]} 27. Nd5 {[%clk 0:02:15]}  Qxb3 {[%clk 0:02:02]} 28. e4 {[%clk 0:02:00]}  Qxa4 {[%clk 0:01:57]} 29. f3 {[%clk 0:01:56]}  Qd1+ {[%clk 0:01:55]} 30. Kg2 {[%clk 0:01:56]}  Qe2+ {[%clk 0:01:54]} 31. Kg3 {[%clk 0:01:57]}  h5 {[%clk 0:01:53]} 32. h4 {[%clk 0:01:43]}  Qe1+ {[%clk 0:01:50]} 33. Kh3 {[%clk 0:01:43]}  hxg4+ {[%clk 0:01:48]} 34. fxg4 {[%clk 0:01:42]}  Qh1+ {[%clk 0:01:45]} 35. Kg3 {[%clk 0:01:41]}  Qg1+ {[%clk 0:01:46]} 36. Kh3 {[%clk 0:01:40]}  Qxg4+ {[%clk 0:01:46]} 0-1


[Site "https://www.chess.com"]

[Event "Titled Tuesday Blitz December 13 Late 2022"]
[White "Arkell, Keith C"]
[Black "Suarez Uriel, Adrian"]
[WhiteFideId "400270"]
[BlackFideId "22230874"]
[WhiteElo "2356"]
[BlackElo "2331"]
[Result "0-1"]
[Round "07"]
[TimeControl "180+1"]
[Date "2022.12.14"]
[WhiteClock "0:00:37"]
[BlackClock "0:00:11"]

1. d4 {[%clk 0:03:00]}  Nf6 {[%clk 0:02:59]} 2. Nf3 {[%clk 0:03:00]}  g6 {[%clk 0:02:59]} 3. c4 {[%clk 0:02:56]}  Bg7 {[%clk 0:02:58]} 4. Nc3 {[%clk 0:02:56]}  d5 {[%clk 0:02:58]} 5. cxd5 {[%clk 0:02:56]}  Nxd5 {[%clk 0:02:59]} 6. g3 {[%clk 0:02:57]}  c5 {[%clk 0:02:58]} 7. Bg2 {[%clk 0:02:56]}  Nc6 {[%clk 0:02:52]} 8. O-O {[%clk 0:02:50]}  Nxc3 {[%clk 0:02:50]} 9. bxc3 {[%clk 0:02:50]}  cxd4 {[%clk 0:02:51]} 10. cxd4 {[%clk 0:02:51]}  Nxd4 {[%clk 0:02:49]} 11. Nxd4 {[%clk 0:02:50]}  Qxd4 {[%clk 0:02:50]} 12. Rb1 {[%clk 0:02:47]}  O-O {[%clk 0:02:38]} 13. Ba3 {[%clk 0:02:33]}  Be6 {[%clk 0:02:13]} 14. Rxb7 {[%clk 0:02:23]}  Rab8 {[%clk 0:01:53]} 15. Bxe7 {[%clk 0:02:14]}  Rfe8 {[%clk 0:01:43]} 16. Rxb8 {[%clk 0:02:10]}  Rxb8 {[%clk 0:01:42]} 17. Qxd4 {[%clk 0:02:02]}  Bxd4 {[%clk 0:01:41]} 18. e3 {[%clk 0:01:59]}  Bg7 {[%clk 0:01:31]} 19. a3 {[%clk 0:01:58]}  h5 {[%clk 0:01:25]} 20. h4 {[%clk 0:01:57]}  Rb3 {[%clk 0:01:23]} 21. Bb4 {[%clk 0:01:55]}  Bc3 {[%clk 0:00:57]} 22. Bxc3 {[%clk 0:01:44]}  Rxc3 {[%clk 0:00:58]} 23. a4 {[%clk 0:01:44]}  a5 {[%clk 0:00:52]} 24. Ra1 {[%clk 0:01:41]}  Rc4 {[%clk 0:00:50]} 25. Bf1 {[%clk 0:01:40]}  Rb4 {[%clk 0:00:50]} 26. Bb5 {[%clk 0:01:41]}  Kf8 {[%clk 0:00:50]} 27. f3 {[%clk 0:01:17]}  Rb2 {[%clk 0:00:48]} 28. Re1 {[%clk 0:01:06]}  Ke7 {[%clk 0:00:48]} 29. Re2 {[%clk 0:01:05]}  Rxe2 {[%clk 0:00:47]} 30. Bxe2 {[%clk 0:01:05]}  Kd6 {[%clk 0:00:48]} 31. Kf2 {[%clk 0:01:01]}  Bd7 {[%clk 0:00:48]} 32. Bd1 {[%clk 0:01:00]}  Kc5 {[%clk 0:00:47]} 33. e4 {[%clk 0:01:01]}  Kb4 {[%clk 0:00:47]} 34. f4 {[%clk 0:00:54]}  Bxa4 {[%clk 0:00:44]} 35. Bxa4 {[%clk 0:00:38]}  Kxa4 {[%clk 0:00:44]} 36. f5 {[%clk 0:00:39]}  Kb4 {[%clk 0:00:33]} 37. g4 {[%clk 0:00:35]}  a4 {[%clk 0:00:29]} 38. e5 {[%clk 0:00:35]}  Kc5 {[%clk 0:00:12]} 39. e6 {[%clk 0:00:36]}  Kd6 {[%clk 0:00:12]} 40. exf7 {[%clk 0:00:35]}  Ke7 {[%clk 0:00:12]} 41. fxg6 {[%clk 0:00:36]}  a3 {[%clk 0:00:11]} 42. gxh5 {[%clk 0:00:36]}  a2 {[%clk 0:00:12]} 43. h6 {[%clk 0:00:37]}  a1=Q {[%clk 0:00:12]} 44. g7 {[%clk 0:00:37]}  Kxf7 {[%clk 0:00:11]} 0-1


[Site "https://www.chess.com"]

[Event "Titled Tuesday Blitz December 13 Late 2022"]
[White "Bettalli, Francesco"]
[Black "Goroshkov, Maksym"]
[WhiteFideId "2816453"]
[BlackFideId "14142716"]
[WhiteElo "2216"]
[BlackElo "2258"]
[Result "0-1"]
[Round "07"]
[TimeControl "180+1"]
[Date "2022.12.14"]
[WhiteClock "0:00:10"]
[BlackClock "0:00:32"]

1. d4 {[%clk 0:03:00]}  Nf6 {[%clk 0:02:59]} 2. Nc3 {[%clk 0:03:01]}  d5 {[%clk 0:02:59]} 3. Bg5 {[%clk 0:03:00]}  c6 {[%clk 0:02:57]} 4. Bxf6 {[%clk 0:02:58]}  exf6 {[%clk 0:02:58]} 5. e4 {[%clk 0:02:59]}  dxe4 {[%clk 0:02:59]} 6. Nxe4 {[%clk 0:03:00]}  Be7 {[%clk 0:02:56]} 7. Nf3 {[%clk 0:02:59]}  O-O {[%clk 0:02:57]} 8. Bd3 {[%clk 0:03:00]}  f5 {[%clk 0:02:55]} 9. Ng3 {[%clk 0:03:00]}  g6 {[%clk 0:02:55]} 10. O-O {[%clk 0:02:59]}  Bf6 {[%clk 0:02:54]} 11. c3 {[%clk 0:02:59]}  Be6 {[%clk 0:02:52]} 12. Re1 {[%clk 0:02:59]}  Nd7 {[%clk 0:02:51]} 13. Qe2 {[%clk 0:02:57]}  Nb6 {[%clk 0:02:50]} 14. a4 {[%clk 0:02:57]}  Re8 {[%clk 0:02:50]} 15. Qf1 {[%clk 0:02:57]}  Nd5 {[%clk 0:02:49]} 16. Ne5 {[%clk 0:02:56]}  Nf4 {[%clk 0:02:48]} 17. Bc4 {[%clk 0:02:56]}  Bd5 {[%clk 0:02:45]} 18. Bxd5 {[%clk 0:02:55]}  Qxd5 {[%clk 0:02:46]} 19. Nd3 {[%clk 0:02:51]}  Nxd3 {[%clk 0:02:21]} 20. Qxd3 {[%clk 0:02:52]}  c5 {[%clk 0:02:21]} 21. Rxe8+ {[%clk 0:02:43]}  Rxe8 {[%clk 0:02:22]} 22. Qb5 {[%clk 0:02:42]}  Rc8 {[%clk 0:02:13]} 23. dxc5 {[%clk 0:02:41]}  Rxc5 {[%clk 0:02:04]} 24. Qe8+ {[%clk 0:02:40]}  Kg7 {[%clk 0:02:05]} 25. Re1 {[%clk 0:02:29]}  Qd2 {[%clk 0:02:00]} 26. Qe2 {[%clk 0:02:24]}  Rd5 {[%clk 0:01:58]} 27. Kf1 {[%clk 0:02:10]}  Qh6 {[%clk 0:01:51]} 28. h3 {[%clk 0:02:07]}  Rd2 {[%clk 0:01:51]} 29. Qb5 {[%clk 0:01:55]}  Qf4 {[%clk 0:01:47]} 30. Ne2 {[%clk 0:01:46]}  Qc7 {[%clk 0:01:44]} 31. a5 {[%clk 0:01:39]}  a6 {[%clk 0:01:30]} 32. Qb4 {[%clk 0:01:33]}  Qd7 {[%clk 0:01:19]} 33. Nf4 {[%clk 0:01:06]}  Rd1 {[%clk 0:01:08]} 34. c4 {[%clk 0:00:51]}  Rd4 {[%clk 0:00:59]} 35. g3 {[%clk 0:00:45]}  Qc6 {[%clk 0:00:55]} 36. b3 {[%clk 0:00:36]}  Qh1+ {[%clk 0:00:53]} 37. Ke2 {[%clk 0:00:36]}  Re4+ {[%clk 0:00:53]} 38. Kd1 {[%clk 0:00:36]}  Qf3+ {[%clk 0:00:50]} 39. Re2 {[%clk 0:00:22]}  Bc3 {[%clk 0:00:35]} 40. Qd6 {[%clk 0:00:13]}  Rd4+ {[%clk 0:00:32]} 41. Qxd4+ {[%clk 0:00:12]}  Bxd4 {[%clk 0:00:33]} 42. Kd2 {[%clk 0:00:10]}  Qc3+ {[%clk 0:00:32]} 0-1


[Site "https://www.chess.com"]

[Event "Titled Tuesday Blitz December 13 Late 2022"]
[White "Bortnyk, Olexandr"]
[Black "Svane, Rasmus"]
[WhiteFideId "14120828"]
[BlackFideId "4657101"]
[WhiteElo "2723"]
[BlackElo "2674"]
[Result "1-0"]
[Round "07"]
[TimeControl "180+1"]
[Date "2022.12.13"]
[WhiteClock "0:00:03"]
[BlackClock "0:00:01"]

1. e4 {[%clk 0:03:00]}  c6 {[%clk 0:02:59]} 2. d4 {[%clk 0:03:01]}  d5 {[%clk 0:03:00]} 3. Nc3 {[%clk 0:03:01]}  dxe4 {[%clk 0:02:57]} 4. Nxe4 {[%clk 0:03:02]}  Nf6 {[%clk 0:02:57]} 5. Nxf6+ {[%clk 0:03:03]}  exf6 {[%clk 0:02:58]} 6. c3 {[%clk 0:03:03]}  Bd6 {[%clk 0:02:59]} 7. Bd3 {[%clk 0:03:04]}  O-O {[%clk 0:02:59]} 8. Qc2 {[%clk 0:03:04]}  h6 {[%clk 0:03:00]} 9. Ne2 {[%clk 0:02:54]}  Re8 {[%clk 0:02:59]} 10. O-O {[%clk 0:02:54]}  Nd7 {[%clk 0:02:59]} 11. Ng3 {[%clk 0:02:53]}  Nf8 {[%clk 0:02:57]} 12. Bd2 {[%clk 0:02:53]}  Bd7 {[%clk 0:02:50]} 13. Ne4 {[%clk 0:02:36]}  Be7 {[%clk 0:02:43]} 14. Rfe1 {[%clk 0:02:35]}  Qc7 {[%clk 0:02:40]} 15. Ng3 {[%clk 0:01:44]}  Bd6 {[%clk 0:02:30]} 16. a3 {[%clk 0:01:44]}  Ne6 {[%clk 0:02:24]} 17. Bh7+ {[%clk 0:01:41]}  Kh8 {[%clk 0:02:21]} 18. Bf5 {[%clk 0:01:42]}  Bxg3 {[%clk 0:01:51]} 19. hxg3 {[%clk 0:01:42]}  Nf8 {[%clk 0:01:50]} 20. Bd3 {[%clk 0:01:37]}  Be6 {[%clk 0:01:45]} 21. c4 {[%clk 0:01:35]}  Qd7 {[%clk 0:01:43]} 22. Be3 {[%clk 0:01:34]}  Rad8 {[%clk 0:01:30]} 23. Rad1 {[%clk 0:01:34]}  Qc8 {[%clk 0:01:31]} 24. b4 {[%clk 0:01:22]}  a6 {[%clk 0:01:28]} 25. a4 {[%clk 0:01:23]}  Ng6 {[%clk 0:01:23]} 26. b5 {[%clk 0:01:08]}  cxb5 {[%clk 0:01:20]} 27. axb5 {[%clk 0:01:06]}  axb5 {[%clk 0:01:20]} 28. d5 {[%clk 0:00:51]}  Bd7 {[%clk 0:01:15]} 29. c5 {[%clk 0:00:33]}  Ne5 {[%clk 0:01:15]} 30. Be2 {[%clk 0:00:30]}  Bf5 {[%clk 0:00:39]} 31. Qb3 {[%clk 0:00:27]}  Qd7 {[%clk 0:00:40]} 32. Bxb5 {[%clk 0:00:27]}  Qc8 {[%clk 0:00:28]} 33. Bxe8 {[%clk 0:00:25]}  Rxe8 {[%clk 0:00:29]} 34. Bd4 {[%clk 0:00:23]}  Kh7 {[%clk 0:00:19]} 35. f3 {[%clk 0:00:20]}  Rd8 {[%clk 0:00:17]} 36. g4 {[%clk 0:00:18]}  Bg6 {[%clk 0:00:17]} 37. d6 {[%clk 0:00:14]}  Nc6 {[%clk 0:00:16]} 38. Bf2 {[%clk 0:00:13]}  Rd7 {[%clk 0:00:14]} 39. Ra1 {[%clk 0:00:10]}  Ne5 {[%clk 0:00:13]} 40. Qd5 {[%clk 0:00:09]}  Nd3 {[%clk 0:00:12]} 41. Red1 {[%clk 0:00:06]}  Nf4 {[%clk 0:00:10]} 42. Qc4 {[%clk 0:00:05]}  Ne6 {[%clk 0:00:10]} 43. Qb5 {[%clk 0:00:05]}  Nd8 {[%clk 0:00:09]} 44. Ra8 {[%clk 0:00:04]}  Qxa8 {[%clk 0:00:06]} 45. Qxd7 {[%clk 0:00:05]}  Nc6 {[%clk 0:00:07]} 46. Re1 {[%clk 0:00:04]}  Qa6 {[%clk 0:00:05]} 47. Qc7 {[%clk 0:00:04]}  Ne5 {[%clk 0:00:04]} 48. d7 {[%clk 0:00:03]}  Nxd7 {[%clk 0:00:02]} 49. Qxd7 {[%clk 0:00:03]}  Qa5 {[%clk 0:00:01]} 50. Qxb7 {[%clk 0:00:03]} 1-0


[Site "https://www.chess.com"]

[Event "Titled Tuesday Blitz December 13 Late 2022"]
[White "Bryant, Todd"]
[Black "Zhu, Jiner"]
[WhiteFideId "2031299"]
[BlackFideId "8608059"]
[WhiteElo "2328"]
[BlackElo "2384"]
[Result "1-0"]
[Round "07"]
[TimeControl "180+1"]
[Date "2022.12.14"]
[WhiteClock "0:01:00"]
[BlackClock "0:01:59"]

1. e4 {[%clk 0:03:00]}  g6 {[%clk 0:02:58]} 2. d4 {[%clk 0:03:00]}  Bg7 {[%clk 0:02:53]} 3. Nc3 {[%clk 0:03:01]}  d6 {[%clk 0:02:53]} 4. Be3 {[%clk 0:03:00]}  a6 {[%clk 0:02:52]} 5. Bd3 {[%clk 0:02:51]}  b5 {[%clk 0:02:52]} 6. Nf3 {[%clk 0:02:47]}  Bb7 {[%clk 0:02:52]} 7. h4 {[%clk 0:02:47]}  h5 {[%clk 0:02:50]} 8. e5 {[%clk 0:02:47]}  e6 {[%clk 0:02:46]} 9. Ne4 {[%clk 0:02:37]}  Nd7 {[%clk 0:02:40]} 10. exd6 {[%clk 0:02:33]}  Ngf6 {[%clk 0:02:35]} 11. Bg5 {[%clk 0:02:14]}  O-O {[%clk 0:02:31]} 12. dxc7 {[%clk 0:02:07]}  Qxc7 {[%clk 0:02:31]} 13. Qe2 {[%clk 0:01:57]}  Rac8 {[%clk 0:02:26]} 14. O-O {[%clk 0:01:16]}  Nxe4 {[%clk 0:02:20]} 15. Bxe4 {[%clk 0:01:17]}  Bxe4 {[%clk 0:02:20]} 16. Qxe4 {[%clk 0:01:18]}  Qxc2 {[%clk 0:02:20]} 17. Qb7 {[%clk 0:01:04]}  Nb8 {[%clk 0:01:59]} 18. Rac1 {[%clk 0:01:00]} 1-0


[Site "https://www.chess.com"]

[Event "Titled Tuesday Blitz December 13 Late 2022"]
[White "Burke, Paul"]
[Black "Barbot, Pierre"]
[WhiteFideId "2605767"]
[BlackFideId "663727"]
[WhiteElo "1928"]
[BlackElo "2439"]
[Result "0-1"]
[Round "07"]
[TimeControl "180+1"]
[Date "2022.12.14"]
[WhiteClock "0:00:28"]
[BlackClock "0:00:35"]

1. e4 {[%clk 0:02:07]}  c5 {[%clk 0:02:39]} 2. d4 {[%clk 0:02:06]}  cxd4 {[%clk 0:02:38]} 3. c3 {[%clk 0:02:06]}  dxc3 {[%clk 0:02:36]} 4. Nxc3 {[%clk 0:02:06]}  g6 {[%clk 0:02:34]} 5. Nf3 {[%clk 0:02:04]}  Bg7 {[%clk 0:02:34]} 6. Bc4 {[%clk 0:02:04]}  Nc6 {[%clk 0:02:26]} 7. Bg5 {[%clk 0:02:01]}  Nf6 {[%clk 0:02:04]} 8. e5 {[%clk 0:01:59]}  Ng4 {[%clk 0:02:04]} 9. Bf4 {[%clk 0:01:56]}  O-O {[%clk 0:01:58]} 10. Qe2 {[%clk 0:01:55]}  Qa5 {[%clk 0:01:52]} 11. Bd5 {[%clk 0:01:18]}  b5 {[%clk 0:00:44]} 12. O-O {[%clk 0:01:07]}  b4 {[%clk 0:00:44]} 13. Bxc6 {[%clk 0:01:05]}  dxc6 {[%clk 0:00:44]} 14. Nd1 {[%clk 0:00:55]}  Ba6 {[%clk 0:00:43]} 15. Qd2 {[%clk 0:00:50]}  Bxf1 {[%clk 0:00:40]} 16. Kxf1 {[%clk 0:00:50]}  Nxe5 {[%clk 0:00:37]} 17. Nxe5 {[%clk 0:00:46]}  Bxe5 {[%clk 0:00:38]} 18. Bxe5 {[%clk 0:00:40]}  Qxe5 {[%clk 0:00:39]} 19. Qxb4 {[%clk 0:00:40]}  Qb5+ {[%clk 0:00:37]} 20. Qxb5 {[%clk 0:00:39]}  cxb5 {[%clk 0:00:38]} 21. Nc3 {[%clk 0:00:32]}  Rfd8 {[%clk 0:00:35]} 22. Nxb5 {[%clk 0:00:30]}  a6 {[%clk 0:00:35]} 23. Nd4 {[%clk 0:00:28]}  Rxd4 {[%clk 0:00:35]} 0-1


[Site "https://www.chess.com"]

[Event "Titled Tuesday Blitz December 13 Late 2022"]
[White "Cruz, William Ferreira Da"]
[Black "Osmonbekov, Talaibek"]
[WhiteFideId "2118050"]
[BlackFideId "2017253"]
[WhiteElo "2223"]
[BlackElo "2135"]
[Result "1-0"]
[Round "07"]
[TimeControl "180+1"]
[Date "2022.12.14"]
[WhiteClock "0:00:18"]
[BlackClock "0:00:06"]

1. d4 {[%clk 0:02:59]}  e6 {[%clk 0:02:59]} 2. e4 {[%clk 0:02:55]}  d5 {[%clk 0:02:59]} 3. Bd3 {[%clk 0:02:55]}  dxe4 {[%clk 0:02:56]} 4. Bxe4 {[%clk 0:02:55]}  Nf6 {[%clk 0:02:56]} 5. Bf3 {[%clk 0:02:55]}  c5 {[%clk 0:02:53]} 6. Ne2 {[%clk 0:02:54]}  Be7 {[%clk 0:02:51]} 7. O-O {[%clk 0:02:53]}  O-O {[%clk 0:02:51]} 8. dxc5 {[%clk 0:02:52]}  Bxc5 {[%clk 0:02:43]} 9. Bg5 {[%clk 0:02:45]}  Nc6 {[%clk 0:02:34]} 10. c3 {[%clk 0:02:35]}  Qxd1 {[%clk 0:02:26]} 11. Rxd1 {[%clk 0:02:34]}  e5 {[%clk 0:02:26]} 12. Bxc6 {[%clk 0:02:33]}  bxc6 {[%clk 0:02:26]} 13. Bxf6 {[%clk 0:02:33]}  gxf6 {[%clk 0:02:25]} 14. Nd2 {[%clk 0:02:33]}  Bg4 {[%clk 0:02:24]} 15. Kf1 {[%clk 0:02:31]}  a5 {[%clk 0:02:13]} 16. f3 {[%clk 0:02:20]}  Be6 {[%clk 0:02:11]} 17. Ne4 {[%clk 0:02:19]}  Be7 {[%clk 0:02:11]} 18. g4 {[%clk 0:02:18]}  f5 {[%clk 0:01:59]} 19. gxf5 {[%clk 0:02:16]}  Bxf5 {[%clk 0:02:00]} 20. N2g3 {[%clk 0:02:12]}  Be6 {[%clk 0:01:59]} 21. Nd6 {[%clk 0:02:09]}  Rab8 {[%clk 0:01:57]} 22. b3 {[%clk 0:02:09]}  f5 {[%clk 0:01:52]} 23. c4 {[%clk 0:02:03]}  a4 {[%clk 0:01:43]} 24. Rab1 {[%clk 0:01:57]}  axb3 {[%clk 0:01:35]} 25. axb3 {[%clk 0:01:56]}  Bxd6 {[%clk 0:01:32]} 26. Rxd6 {[%clk 0:01:55]}  Bxc4+ {[%clk 0:01:32]} 27. Kf2 {[%clk 0:01:53]}  Bd5 {[%clk 0:01:23]} 28. b4 {[%clk 0:01:50]}  Rb5 {[%clk 0:01:08]} 29. Re1 {[%clk 0:01:39]}  e4 {[%clk 0:01:06]} 30. fxe4 {[%clk 0:01:21]}  fxe4+ {[%clk 0:01:06]} 31. Kg1 {[%clk 0:01:21]}  Rxb4 {[%clk 0:01:05]} 32. Nh5 {[%clk 0:01:21]}  Rd4 {[%clk 0:00:44]} 33. Nf6+ {[%clk 0:01:14]}  Kg7 {[%clk 0:00:44]} 34. Ng4 {[%clk 0:01:03]}  Rd3 {[%clk 0:00:25]} 35. Ne5 {[%clk 0:00:59]}  Rc3 {[%clk 0:00:19]} 36. Rd7+ {[%clk 0:00:56]}  Kh6 {[%clk 0:00:18]} 37. Ng4+ {[%clk 0:00:53]}  Kg5 {[%clk 0:00:17]} 38. Ne3 {[%clk 0:00:53]}  Rc5 {[%clk 0:00:14]} 39. Rxh7 {[%clk 0:00:52]}  Rf3 {[%clk 0:00:13]} 40. Rg7+ {[%clk 0:00:44]}  Kf4 {[%clk 0:00:14]} 41. Ng2+ {[%clk 0:00:42]}  Ke5 {[%clk 0:00:14]} 42. h4 {[%clk 0:00:40]}  Rc2 {[%clk 0:00:13]} 43. h5 {[%clk 0:00:39]}  Kd4 {[%clk 0:00:12]} 44. h6 {[%clk 0:00:38]}  Rh3 {[%clk 0:00:12]} 45. h7 {[%clk 0:00:38]}  e3 {[%clk 0:00:11]} 46. Rxe3 {[%clk 0:00:34]}  Rxg2+ {[%clk 0:00:09]} 47. Rxg2 {[%clk 0:00:31]}  Rxh7 {[%clk 0:00:10]} 48. Rgg3 {[%clk 0:00:26]}  c5 {[%clk 0:00:10]} 49. Rd3+ {[%clk 0:00:25]}  Ke5 {[%clk 0:00:10]} 50. Rg5+ {[%clk 0:00:25]}  Ke4 {[%clk 0:00:10]} 51. Rgxd5 {[%clk 0:00:25]}  c4 {[%clk 0:00:10]} 52. R5d4+ {[%clk 0:00:23]}  Ke5 {[%clk 0:00:08]} 53. Rd1 {[%clk 0:00:24]}  Rg7+ {[%clk 0:00:07]} 54. Kf2 {[%clk 0:00:23]}  Rf7+ {[%clk 0:00:08]} 55. Ke3 {[%clk 0:00:23]}  c3 {[%clk 0:00:08]} 56. Rc4 {[%clk 0:00:22]}  Rh7 {[%clk 0:00:07]} 57. Rxc3 {[%clk 0:00:21]}  Rh3+ {[%clk 0:00:07]} 58. Kd2 {[%clk 0:00:21]}  Rh2+ {[%clk 0:00:08]} 59. Kc1 {[%clk 0:00:20]}  Ke4 {[%clk 0:00:08]} 60. Rc8 {[%clk 0:00:19]}  Ke3 {[%clk 0:00:06]} 61. Re8+ {[%clk 0:00:20]}  Kf2 {[%clk 0:00:06]} 62. Rd2+ {[%clk 0:00:20]}  Kg3 {[%clk 0:00:06]} 63. Rg8+ {[%clk 0:00:18]}  Kf4 {[%clk 0:00:06]} 64. Rxh2 {[%clk 0:00:18]} 1-0


[Site "https://www.chess.com"]